bitfinex/quotes_BTCUSD_20251202
["timestamp","ask_amount","ask_price","bid_price","bid_amount"]
[1764687998972,0.08603,90022.0,90021.0,0.00011398]
[1764688000280,0.22216769,90023.0,90021.0,0.00011398]
[1764688000480,0.0495,90022.0,90021.0,0.00011398]
[1764688001555,0.01110777,90027.0,90021.0,0.00011398]
[1764688001766,0.23327333,90024.0,90021.0,0.00011398]
[1764688001975,0.0495,90036.0,90021.0,0.00011398]
[1764688001976,0.01110666,90036.0,90028.0,0.22215186]
[1764688002201,0.01110765,90028.0,90021.0,0.00011398]
[1764688002385,0.23327186,90024.0,90021.0,0.00011398]
[1764688002594,0.22216683,90023.0,90021.0,0.00011398]
[1764688003845,0.01110777,90027.0,90021.0,0.00011398]
[1764688003846,0.23325417,90031.0,90023.0,0.22216488]
[1764688004059,0.01110728,90031.0,90024.0,0.22216189]
[1764688004246,0.22215434,90028.0,90024.0,0.01110814]
[1764688004447,0.23326625,90026.0,90022.0,0.01110839]
[1764688004641,0.22215923,90026.0,90021.0,0.00011398]
[1764688004868,0.22216791,90022.0,90021.0,0.00011398]
[1764688005274,0.23326713,90026.0,90021.0,0.00011398]
[1764688005275,0.0111058,90043.0,90021.0,0.00011398]
[1764688005485,0.01110765,90028.0,90024.0,0.2332698]
[1764688005654,0.01110666,90036.0,90024.0,0.2332698]
[1764688005655,0.01918114,90033.0,90027.0,0.23326267]
[1764688005860,0.22213191,90037.0,90027.0,0.23326267]
[1764688005861,0.01110691,90034.0,90030.0,0.0111074]
[1764688006056,0.01884,90045.0,90038.0,0.22212575]
[1764688006057,0.02994555,90045.0,90038.0,0.22212575]
[1764688006312,0.01110309,90065.0,90055.0,0.01110432]
[1764688006523,0.01110518,90048.0,90041.0,0.01110605]
[1764688006751,0.01110543,90046.0,90040.0,0.0188]
[1764688006925,0.07173593,90064.0,89997.0,1.11114151]
[1764688006926,0.22213448,90036.0,90035.0,0.0188]
[1764688007081,0.01110617,90040.0,90031.0,0.01110728]
[1764688007285,0.01110617,90040.0,90029.0,0.01110753]
[1764688007286,0.01110679,90035.0,90032.0,0.0188]
[1764688007489,0.02223593,90037.0,90035.0,0.22213384]
[1764688007692,0.01110481,90051.0,90043.0,0.0111058]
[1764688007898,0.01110506,90049.0,90027.0,0.0188]
[1764688008114,0.01148917,90049.0,90045.0,0.01110555]
[1764688008315,0.01148917,90049.0,90021.0,0.323]
[1764688008316,0.01110617,90040.0,90035.0,0.01110679]
[1764688008541,0.01110654,90037.0,90028.0,0.01110765]
[1764688008711,0.23324629,90034.0,90030.0,0.0111074]
[1764688008910,0.01110592,90042.0,90034.0,0.22213793]
[1764688009116,0.01110642,90038.0,90033.0,0.01110703]
[1764688009314,0.01458688,90038.0,90021.0,0.01110851]
[1764688009544,0.01458688,90038.0,90021.0,0.323]
[1764688009545,0.01174847,90037.0,90021.0,0.323]
[1764688009767,0.09209,90048.0,90015.0,0.01110925]
[1764688009768,0.01110864,90020.0,90015.0,0.01110925]
[1764688009977,0.01110777,90027.0,90021.0,0.22216809]
[1764688010209,0.01110827,90023.0,90018.0,0.01110888]
[1764688010418,0.02777098,90022.0,90018.0,0.01110888]
[1764688010598,0.01110851,90021.0,90015.0,0.23329396]
[1764688010894,0.25266517,90022.0,90017.0,0.01110901]
[1764688011069,0.25266517,90022.0,90018.0,0.23328632]
[1764688011284,0.02740771,90022.0,90021.0,0.01110851]
[1764688011600,0.01110827,90023.0,90019.0,0.01110876]
[1764688011758,0.01110827,90023.0,90019.0,0.2332834]
[1764688011960,0.02377575,90022.0,90019.0,0.2332834]
[1764688012197,0.02377575,90022.0,90019.0,0.23328328]
[1764688012385,0.24594403,90022.0,90019.0,0.23328307]
[1764688012551,0.02377575,90022.0,90020.0,0.22217101]
[1764688012962,0.02358221,90023.0,90020.0,0.23328121]
[1764688013176,0.23326929,90025.0,90020.0,0.23328121]
[1764688013491,0.02484836,90024.0,90022.0,0.22216768]
[1764688013887,0.23324969,90033.0,90027.0,0.2221553]
[1764688014088,0.01110728,90031.0,90025.0,0.01110802]
[1764688014307,0.22215151,90029.0,90025.0,0.01110802]
[1764688014539,0.22215723,90027.0,90023.0,0.01110827]
[1764688014756,0.01110814,90024.0,90015.0,0.00011413]
[1764688014957,0.01110839,90022.0,90019.0,0.22217401]
[1764688015189,0.01577968,90021.0,90020.0,0.23328149]
[1764688015508,0.01577968,90021.0,90019.0,0.22217401]
[1764688015509,0.01110827,90023.0,90019.0,0.22217418]
[1764688015714,0.02102728,90022.0,90019.0,0.23328294]
[1764688015922,0.24319599,90022.0,90019.0,0.23328294]
[1764688016136,0.01110888,90018.0,90015.0,0.00011413]
[1764688016545,0.22218067,90017.0,90015.0,0.00011413]
[1764688016745,0.22218272,90016.0,90015.0,0.00011413]
[1764688016987,0.31427272,90016.0,90015.0,0.00011413]
[1764688017949,0.22218272,90016.0,90015.0,0.00011413]
[1764688018162,0.31427272,90016.0,90015.0,0.00011413]
[1764688019417,0.09209,90016.0,90015.0,0.00011413]
[1764688019585,0.03482,90017.0,90015.0,0.00011413]
[1764688019790,0.01110888,90018.0,90015.0,0.00011413]
[1764688020031,0.02969324,90020.0,90016.0,0.22218226]
[1764688020251,0.23328412,90019.0,90015.0,0.01122338]
[1764688020569,0.22218272,90016.0,90015.0,0.00011413]
[1764688020820,0.22218025,90017.0,90015.0,0.00011413]
[1764688021009,0.22218159,90017.0,90015.0,0.00011413]
[1764688021249,0.11081,90025.0,90015.0,0.00011413]
[1764688021461,0.02777037,90024.0,90023.0,0.22216544]
[1764688021644,0.02777037,90024.0,90019.0,0.01110876]
[1764688021645,0.23327371,90023.0,90019.0,0.233284]
[1764688021882,0.22218272,90016.0,90015.0,0.00011413]
[1764688022100,0.22218272,90016.0,90015.0,4.13e-06]
[1764688022292,0.22218272,90016.0,89963.0,0.13334621]
[1764688022293,0.01111518,89967.0,89963.0,0.13334621]
[1764688022476,0.01111654,89956.0,89950.0,0.04432845]
[1764688022647,0.01111666,89955.0,89950.0,0.04444259]
[1764688023014,0.22234177,89952.0,89950.0,0.00011414]
[1764688023629,0.09209,89951.0,89950.0,0.00011414]
[1764688023835,0.22239272,89931.0,89930.0,0.0004]
[1764688024054,0.01868,89933.0,89930.0,0.22317815]
[1764688024266,0.31443444,89951.0,89944.0,0.23347668]
[1764688024480,0.01111877,89938.0,89924.0,0.0111205]
[1764688024609,0.01111914,89935.0,89924.0,0.0111205]
[1764688024893,0.01111827,89942.0,89937.0,0.23349528]
[1764688025069,2.8183821,90014.0,89913.0,0.01872]
[1764688025070,0.01111704,89952.0,89944.0,0.01111802]
[1764688025324,0.01111728,89950.0,89946.0,0.01111778]
[1764688025497,0.23345963,89952.0,89944.0,0.01111802]
[1764688025703,0.01111642,89957.0,89941.0,0.01111839]
[1764688025907,0.01111469,89971.0,89963.0,0.01111568]
[1764688026079,0.01111691,89953.0,89947.0,0.01111765]
[1764688026283,0.01111691,89953.0,89946.0,0.01111778]
[1764688026284,0.22233369,89955.0,89946.0,0.01111778]
[1764688026494,0.0935,90008.0,89992.0,0.01111209]
[1764688026694,0.03888585,90007.0,89995.0,0.01111172]
[1764688026894,0.0935,90018.0,89993.0,0.01111197]
[1764688027234,0.02777438,90011.0,90006.0,0.2222074]
[1764688027442,0.01110987,90010.0,89983.0,0.01111321]
[1764688027633,0.01110987,90010.0,89969.0,0.04687]
[1764688027634,0.24997675,90009.0,90001.0,0.01111098]
[1764688027873,0.027775,90009.0,89993.0,0.00011417]
[1764688028083,0.23332936,90002.0,89993.0,0.00011417]
[1764688028201,0.0224148,90001.0,90000.0,0.22222222]
[1764688028397,0.0935,90008.0,90000.0,0.22222033]
[1764688028599,0.0935,90008.0,89998.0,0.01111135]
[1764688028600,0.0277753,90008.0,90006.0,0.222205]
[1764688028812,0.01110888,90018.0,90005.0,0.01111049]
[1764688028813,0.02777314,90015.0,90014.0,0.22218765]
[1764688029015,0.02777314,90015.0,90008.0,0.23331015]
[1764688029016,0.0935,90041.0,90001.0,0.03018]
[1764688029286,0.01110703,90033.0,90021.0,0.01110851]
[1764688029491,0.02596305,90032.0,90025.0,0.01110802]
[1764688029688,0.02596305,90032.0,90023.0,0.23327243]
[1764688029905,0.01110753,90029.0,90023.0,0.23327269]
[1764688030082,0.02153802,90028.0,90025.0,0.01110802]
[1764688030285,0.02237192,90033.0,90031.0,0.22214448]
[1764688030489,0.01110691,90034.0,90031.0,0.00011417]
[1764688030688,0.22214077,90033.0,90031.0,0.00011417]
[1764688030896,0.01861708,90032.0,90031.0,0.00011417]
[1764688031132,0.1212679,90032.0,90031.0,0.00011417]
[1764688031334,0.0277679,90032.0,90031.0,0.00011417]
[1764688031493,0.01110666,90036.0,90031.0,0.00011417]
[1764688031697,0.01110691,90034.0,90031.0,0.00011417]
[1764688031916,0.10460679,90035.0,90031.0,0.00011417]
[1764688032125,0.22214212,90033.0,90031.0,0.00011417]
[1764688032340,0.02024197,90032.0,90031.0,0.00011417]
[1764688032566,0.11374197,90032.0,90031.0,0.00011417]
[1764688032780,0.02024197,90032.0,90031.0,0.00011417]
[1764688032982,0.2221424,90033.0,90031.0,0.00011417]
[1764688033197,0.0277679,90032.0,90031.0,0.00011417]
[1764688033392,0.2221424,90033.0,90031.0,0.00011417]
[1764688033630,0.02610335,90032.0,90031.0,0.00011417]
[1764688034015,0.23324651,90034.0,90031.0,0.00011417]
[1764688034216,0.01110691,90034.0,90031.0,0.00011417]
[1764688034667,0.22214198,90033.0,90031.0,0.00011417]
[1764688034868,0.01110666,90036.0,90031.0,0.00011417]
[1764688035101,0.22214246,90033.0,90031.0,0.00011417]
[1764688035341,0.2332465,90034.0,90031.0,0.00011417]
[1764688035562,0.23322565,90042.0,90038.0,0.01110642]
[1764688035782,0.23322565,90042.0,90031.0,0.00011417]
[1764688035783,0.01110691,90034.0,90031.0,0.00011417]
[1764688035995,0.22214186,90033.0,90031.0,0.00011417]
[1764688036208,0.2332464,90034.0,90031.0,0.00011417]
[1764688036409,0.22214256,90033.0,90031.0,0.00011417]
[1764688036617,0.22210873,90046.0,90031.0,0.00011417]
[1764688036618,0.0277679,90032.0,90031.0,0.00011417]
[1764688036825,0.0111042,90056.0,90051.0,0.23320016]
[1764688037024,0.02776081,90055.0,90046.0,0.22210675]
[1764688037230,0.02776081,90055.0,90047.0,0.01110531]
[1764688037231,0.01110481,90051.0,90047.0,0.01110531]
[1764688037405,0.02776235,90050.0,90047.0,0.23320987]
[1764688037623,0.01110358,90061.0,90051.0,0.01110481]
[1764688037825,0.01110444,90054.0,90050.0,0.01110494]
[1764688038052,0.22209415,90052.0,90046.0,0.01110543]
[1764688038228,0.02776204,90051.0,90049.0,0.23320539]
[1764688038563,0.03886685,90051.0,90048.0,0.01110518]
[1764688038805,0.03886685,90051.0,90045.0,0.01110555]
[1764688038806,0.02776204,90051.0,90045.0,0.01110555]
[1764688038980,0.23947477,90052.0,90048.0,0.01110518]
[1764688039184,0.23320587,90050.0,90044.0,0.22211359]
[1764688039386,0.01110518,90048.0,90045.0,0.2332155]
[1764688039598,0.01110457,90053.0,90035.0,0.22213517]
[1764688039832,0.01666081,90055.0,90042.0,0.01110592]
[1764688040049,0.0002,90080.0,90069.0,0.22205198]
[1764688040300,0.01110136,90079.0,90069.0,0.22205198]
[1764688040432,0.23312882,90079.0,90067.0,0.01110284]
[1764688040638,0.01110185,90075.0,90065.0,0.23316493]
[1764688040853,0.01110222,90072.0,90061.0,0.02970358]
[1764688041048,0.23315716,90068.0,90062.0,0.01110346]
[1764688041249,0.00038449,90068.0,90065.0,0.01110309]
[1764688041471,0.00038449,90068.0,90067.0,0.22205691]
[1764688042070,0.00038449,90068.0,90066.0,0.22205724]
[1764688042653,0.00038449,90068.0,90066.0,0.24947724]
[1764688042863,0.00038449,90068.0,90067.0,0.09089]
[1764688043889,0.00038449,90068.0,90067.0,0.22205691]
[1764688044077,0.00038449,90068.0,90067.0,0.24065691]
[1764688044281,0.00038449,90068.0,90067.0,0.31294691]
[1764688044484,0.00038449,90068.0,90067.0,0.33154691]
[1764688046828,0.00038449,90068.0,90067.0,0.65454691]
[1764688049132,0.00038449,90068.0,90067.0,0.72073691]
[1764688049263,0.00038449,90068.0,90067.0,0.70213691]
[1764688049669,0.00038449,90068.0,90067.0,0.72069691]
[1764688049876,0.0002,90080.0,90067.0,0.72069691]
[1764688049877,0.0002,90080.0,90079.0,0.54502733]
[1764688050080,0.0002,90080.0,90079.0,0.67421995]
[1764688050334,0.0002,90080.0,90079.0,0.76510995]
[1764688050538,0.007428,90090.0,90089.0,0.54500268]
[1764688050752,0.007428,90090.0,90089.0,0.61119268]
[1764688050959,0.0869,90105.0,90104.0,0.54496572]
[1764688051157,0.0869,90105.0,90104.0,0.63585572]
[1764688051577,0.0869,90105.0,90104.0,0.65441572]
[1764688051784,0.0869,90105.0,90104.0,0.63585572]
[1764688051978,0.0869,90105.0,90104.0,0.65441572]
[1764688052587,0.01109594,90123.0,90108.0,0.01109779]
[1764688052787,0.01109804,90106.0,90100.0,0.03852]
[1764688052988,0.01109717,90113.0,90104.0,0.01109828]
[1764688053266,0.13902,90143.0,90104.0,0.01109828]
[1764688053468,0.01109557,90126.0,90109.0,0.01109767]
[1764688053676,0.0110973,90112.0,90106.0,0.01109804]
[1764688053879,0.23304727,90111.0,90109.0,0.00011417]
[1764688054283,0.01109373,90141.0,90129.0,0.0110952]
[1764688054482,0.01109176,90157.0,90148.0,0.01109286]
[1764688054689,0.01109188,90156.0,90149.0,0.23294638]
[1764688054852,0.01109188,90156.0,90144.0,0.03297]
[1764688054853,0.22185181,90151.0,90144.0,0.03297]
[1764688055055,0.01856,90167.0,90144.0,0.03297]
[1764688055056,0.01856,90167.0,90151.0,0.0110925]
[1764688055258,0.02772448,90173.0,90168.0,0.0110904]
[1764688055529,0.65088128,90200.0,90168.0,0.0110904]
[1764688055530,0.22176546,90186.0,90172.0,0.01108991]
[1764688055734,0.00058497,90180.0,90163.0,0.01856]
[1764688055869,0.01108917,90178.0,90165.0,0.01109077]
[1764688056073,0.0116739,90180.0,90164.0,0.01856]
[1764688056074,0.22179412,90174.0,90164.0,0.01856]
[1764688056299,0.03881427,90173.0,90160.0,0.01109139]
[1764688056536,0.01109102,90163.0,90158.0,0.01856]
[1764688056779,0.01109102,90163.0,90158.0,0.01109163]
[1764688057011,0.01109053,90167.0,90159.0,0.01109151]
[1764688057247,0.01109028,90169.0,90157.0,0.04432845]
[1764688057484,0.01109139,90160.0,90157.0,0.04432845]
[1764688057712,0.01109286,90148.0,90139.0,0.2218794]
[1764688057961,0.23293521,90154.0,90149.0,0.01109274]
[1764688058189,0.01109299,90147.0,90141.0,0.01856]
[1764688058409,0.01109299,90147.0,90120.0,0.67830128]
[1764688058410,0.2218966,90133.0,90120.0,0.02742]
[1764688058614,0.0110941,90138.0,90130.0,0.01109508]
[1764688058828,0.01109434,90136.0,90131.0,0.04444262]
[1764688059028,0.22189572,90133.0,90131.0,0.04444262]
[1764688059271,0.22189572,90133.0,90131.0,0.00011417]
[1764688059272,0.02537623,90132.0,90131.0,0.00011417]
[1764688059978,0.11599623,90132.0,90131.0,0.00011417]
[1764688060589,0.10777363,90132.0,90131.0,0.00011417]
[1764688060806,0.02773709,90132.0,90131.0,0.00011417]
[1764688061004,0.0110941,90138.0,90131.0,0.00011417]
[1764688061005,0.22189562,90133.0,90131.0,0.00011417]
[1764688061213,0.02338837,90132.0,90131.0,0.00011417]
[1764688061620,0.02184946,90132.0,90131.0,0.00011417]
[1764688062035,0.11246946,90132.0,90131.0,0.00011417]
[1764688062251,0.00185364,90132.0,90131.0,0.00011417]
[1764688063520,0.00185364,90132.0,90131.0,0.09636417]
[1764688064151,0.00185364,90132.0,90131.0,0.41936417]
[1764688064367,0.00185364,90132.0,90131.0,0.41926713]
[1764688064572,0.00185364,90132.0,90131.0,0.39175417]
[1764688065610,0.00185364,90132.0,90131.0,0.41027417]
[1764688066032,0.01108979,90173.0,90158.0,0.01109163]
[1764688066235,0.23289679,90169.0,90159.0,0.03846]
[1764688066437,0.01109053,90167.0,90160.0,0.23291843]
[1764688066640,0.0110909,90164.0,90160.0,0.23291843]
[1764688066837,0.02772479,90172.0,90159.0,0.04955151]
[1764688067039,0.01109077,90165.0,90159.0,0.01109151]
[1764688067430,0.00038504,90165.0,90162.0,0.22182061]
[1764688067654,0.00038504,90165.0,90164.0,0.0110909]
[1764688067853,0.00038504,90165.0,90164.0,0.3340909]
[1764688068061,0.00038504,90165.0,90164.0,0.0296109]
[1764688068268,0.00038504,90165.0,90159.0,0.22183032]
[1764688068269,0.00038504,90165.0,90159.0,0.02961151]
[1764688068478,0.00038504,90165.0,90164.0,0.22181802]
[1764688069321,0.01147581,90165.0,90153.0,0.04955225]
[1764688069521,0.01109151,90159.0,90151.0,0.0110925]
[1764688069724,0.01109139,90160.0,90155.0,0.011092]
[1764688069940,0.02207758,90159.0,90148.0,0.01109286]
[1764688070143,0.01109151,90159.0,90155.0,0.011092]
[1764688070345,0.2329206,90160.0,90156.0,0.01109188]
[1764688070546,0.01109139,90160.0,90154.0,0.01109213]
[1764688070749,0.01109102,90163.0,90157.0,0.23292479]
[1764688070750,0.03881858,90163.0,90157.0,0.23292479]
[1764688070956,0.23329178,90165.0,90157.0,0.23292479]
[1764688070957,0.00038504,90165.0,90164.0,0.22181802]
[1764688071158,0.00038504,90165.0,90164.0,0.54481802]
[1764688071334,0.00038504,90165.0,90164.0,0.70536802]
[1764688072545,0.0002,90180.0,90179.0,0.54478112]
[1764688072745,0.0002,90180.0,90179.0,0.72396541]
[1764688073557,0.01782148,90208.0,90207.0,0.54471228]
[1764688073695,4.004e-05,90208.0,90207.0,0.323]
[1764688073900,4.004e-05,90208.0,90206.0,0.22171474]
[1764688074556,4.004e-05,90208.0,90207.0,0.09625]
[1764688074760,4.004e-05,90208.0,90207.0,0.09636429]
[1764688075476,4.004e-05,90208.0,90207.0,0.11484429]
[1764688075724,0.04752,90249.0,90239.0,0.01108168]
[1764688075835,0.01107885,90262.0,90248.0,0.22160913]
[1764688076063,0.01107922,90259.0,90248.0,0.22160913]
[1764688076265,0.0016661,90263.0,90249.0,0.09625]
[1764688076712,0.0016661,90263.0,90249.0,0.43773]
[1764688076924,0.0016661,90263.0,90249.0,0.43784429]
[1764688077123,0.0016661,90263.0,90249.0,0.41936429]
[1764688077444,0.10352206,90250.0,90249.0,0.41936429]
[1764688077663,0.0016661,90263.0,90249.0,0.41936429]
[1764688077664,0.0016661,90263.0,90256.0,0.54459191]
[1764688077944,0.0016661,90263.0,90262.0,0.54457718]
[1764688078167,0.0016661,90263.0,90262.0,0.58309718]
[1764688078384,0.0016661,90263.0,90262.0,0.67934718]
[1764688078529,0.00205381,90263.0,90262.0,0.69786718]
[1764688078742,0.00205381,90263.0,90262.0,0.58309718]
[1764688078943,0.00205381,90263.0,90262.0,0.67934718]
[1764688079149,0.00205381,90263.0,90253.0,0.01107996]
[1764688079350,0.0016661,90263.0,90257.0,0.01107947]
[1764688079556,0.0016661,90263.0,90259.0,0.23266192]
[1764688079755,0.0016661,90263.0,90259.0,0.01107922]
[1764688079967,0.0016661,90263.0,90261.0,0.22157964]
[1764688080388,0.0016661,90263.0,90262.0,0.48205845]
[1764688080603,0.02287419,90300.0,90279.0,0.22153546]
[1764688080919,0.01107689,90278.0,90268.0,0.323]
[1764688081085,0.01108119,90243.0,90225.0,0.0110834]
[1764688081278,0.01108106,90244.0,90228.0,0.22165883]
[1764688081487,0.01852,90248.0,90220.0,0.03852]
[1764688081488,0.01108229,90234.0,90220.0,0.03852]
[1764688081692,0.01108278,90230.0,90220.0,0.00011429]
[1764688082041,0.2216776,90222.0,90220.0,0.00011429]
[1764688082243,0.02770973,90221.0,90220.0,0.00011429]
[1764688082390,0.11832973,90221.0,90220.0,0.00011429]
[1764688082599,0.09062,90221.0,90220.0,0.00011429]
[1764688082801,0.01852,90227.0,90220.0,0.00011429]
[1764688082982,0.01108364,90223.0,90220.0,0.00011429]
[1764688083179,0.03787998,90225.0,90220.0,0.00011429]
[1764688083384,0.02679658,90225.0,90224.0,0.2216705]
[1764688083587,0.01108229,90234.0,90227.0,0.01108315]
[1764688083786,0.01108278,90230.0,90226.0,0.23274717]
[1764688084025,0.01108266,90231.0,90220.0,0.00011429]
[1764688084167,0.2216772,90222.0,90220.0,0.00011429]
[1764688084655,0.09062,90221.0,90220.0,0.00011429]
[1764688084860,0.09062,90221.0,90101.0,0.19503712]
[1764688084861,0.01108844,90184.0,90170.0,0.01109016]
[1764688085069,0.01108856,90183.0,90175.0,0.01108954]
[1764688085268,0.02960721,90194.0,90179.0,0.23286784]
[1764688085480,0.22177877,90180.0,90170.0,0.01120454]
[1764688085681,0.01108881,90181.0,90170.0,0.00011438]
[1764688085682,0.23288567,90173.0,90170.0,0.00011438]
[1764688086122,0.22180044,90172.0,90170.0,0.00011438]
[1764688086336,0.31858044,90172.0,90170.0,0.00011438]
[1764688086541,0.22180044,90172.0,90170.0,0.00011438]
[1764688086875,0.09678,90171.0,90170.0,0.00011438]
[1764688088474,0.01108979,90173.0,90170.0,0.00011438]
[1764688088677,0.2403208,90171.0,90170.0,0.00011438]
[1764688089016,0.01109311,90146.0,90140.0,0.01109385]
[1764688089218,0.01109299,90147.0,90143.0,0.01109348]
[1764688089423,0.01852,90154.0,90149.0,0.01109274]
[1764688089623,0.02961213,90154.0,90149.0,0.01109274]
[1764688089860,0.02961213,90154.0,90140.0,0.00038504]
[1764688089861,0.01109237,90152.0,90140.0,0.00038504]
[1764688090063,0.01852,90154.0,90151.0,0.0110925]
[1764688090307,0.01848,90157.0,90154.0,0.01109213]
[1764688090507,0.01848,90157.0,90118.0,0.09066]
[1764688090508,0.04658,90152.0,90118.0,0.09066]
[1764688090806,0.04658,90152.0,90121.0,0.22192359]
[1764688090807,0.22187461,90141.0,90121.0,0.22192359]
[1764688091003,0.22187461,90141.0,90124.0,0.01109582]
[1764688091202,0.22187461,90141.0,90113.0,0.01848]
[1764688091203,0.31865461,90141.0,90113.0,0.23304023]
[1764688091606,0.31865461,90141.0,90110.0,0.01109754]
[1764688091818,0.31865461,90141.0,90119.0,0.01109643]
[1764688092027,0.31865461,90141.0,90122.0,0.01109606]
[1764688092230,0.31865461,90141.0,90116.0,0.0110968]
[1764688092378,0.31865461,90141.0,90107.0,0.26628618]
[1764688092576,0.31865461,90141.0,90114.0,0.01109705]
[1764688092838,0.01109828,90104.0,90097.0,0.01109914]
[1764688093064,0.06506,90115.0,90109.0,0.01109767]
[1764688093258,0.06506,90115.0,90103.0,0.0110984]
[1764688093259,0.01109754,90110.0,90103.0,0.0110984]
[1764688093479,0.01109779,90108.0,90104.0,0.23306383]
[1764688093687,0.01109767,90109.0,90104.0,0.01109828]
[1764688093906,0.01109705,90114.0,90102.0,0.22197003]
[1764688093907,0.01848,90125.0,90123.0,0.2219183]
[1764688094121,0.01848,90125.0,90102.0,0.09066]
[1764688094122,0.01109434,90136.0,90132.0,0.01109483]
[1764688094332,0.01848,90143.0,90137.0,0.01109422]
[1764688094589,0.01109373,90141.0,90131.0,0.01109496]
[1764688094771,0.04658,90152.0,90148.0,0.232949]
[1764688094988,0.04658,90152.0,90137.0,0.01109422]
[1764688094989,0.01109311,90146.0,90137.0,0.01109422]
[1764688095195,0.01109311,90146.0,90130.0,0.01109508]
[1764688095196,0.22187461,90141.0,90130.0,0.01109508]
[1764688095394,0.01848,90142.0,90137.0,0.00011448]
[1764688095612,0.01848,90142.0,90141.0,0.22187461]
[1764688096325,0.04658,90152.0,90149.0,0.23294532]
[1764688096477,0.05767237,90152.0,90147.0,0.01109299]
[1764688096677,0.05767237,90152.0,90139.0,0.23297222]
[1764688096678,0.01109323,90145.0,90139.0,0.23297222]
[1764688097031,0.04658,90152.0,90149.0,0.01109274]
[1764688097234,0.01848,90155.0,90152.0,0.01109237]
[1764688097442,0.23290766,90165.0,90159.0,0.01109151]
[1764688097624,0.04658,90174.0,90168.0,0.0110904]
[1764688097774,0.0110893,90177.0,90172.0,0.22179834]
[1764688097775,0.04178589,90175.0,90172.0,0.22179834]
[1764688097967,0.01848,90175.0,90173.0,0.22179492]
[1764688098209,0.01108917,90178.0,90167.0,0.01109053]
[1764688098426,0.01109004,90171.0,90161.0,0.01109127]
[1764688098630,0.0110909,90164.0,90153.0,0.0459]
[1764688098808,0.00038519,90164.0,90163.0,0.22181915]
[1764688099008,0.00038519,90164.0,90162.0,0.01109114]
[1764688099211,0.00038519,90164.0,90161.0,0.23291667]
[1764688099430,0.01109102,90163.0,90154.0,0.01109213]
[1764688099636,0.01109139,90160.0,90142.0,0.0295736]
[1764688099793,0.00038519,90164.0,90163.0,0.22182048]
[1764688100227,0.00238519,90164.0,90163.0,0.63548048]
[1764688100702,0.00038519,90164.0,90163.0,0.54482048]
[1764688100933,0.00238519,90164.0,90163.0,0.54482048]
[1764688101138,0.00338519,90164.0,90163.0,0.22182048]
[1764688101384,0.00338519,90164.0,90162.0,0.22182294]
[1764688101385,0.00238519,90164.0,90162.0,0.22182294]
[1764688101538,0.00238519,90164.0,90163.0,0.09066]
[1764688101745,0.00338519,90164.0,90163.0,0.41366]
[1764688101955,0.00238519,90164.0,90163.0,0.43214]
[1764688102287,0.00038519,90164.0,90163.0,0.43214]
[1764688102495,0.04658,90209.0,90204.0,0.22171965]
[1764688102696,0.04658,90209.0,90205.0,0.22171212]
[1764688102900,0.01108561,90207.0,90204.0,0.00011448]
[1764688103101,0.24943085,90206.0,90204.0,0.00011448]
[1764688103281,0.31849651,90206.0,90204.0,0.00011448]
[1764688103504,0.12449464,90205.0,90204.0,0.00011448]
[1764688103685,0.01109028,90169.0,90163.0,0.01109102]
[1764688103887,0.002,90164.0,90163.0,0.0001145]
[1764688104083,0.22381802,90164.0,90163.0,0.0001145]
[1764688104293,0.25054527,90164.0,90163.0,0.0001145]
[1764688104796,0.34732527,90164.0,90163.0,0.0001145]
[1764688105831,0.31959802,90164.0,90163.0,0.0001145]
[1764688106159,0.001,90164.0,90163.0,0.0001145]
[1764688106392,0.02772725,90164.0,90163.0,0.0001145]
[1764688106596,0.00879423,90164.0,90163.0,0.0001145]
[1764688106851,0.001,90164.0,90163.0,0.22193498]
[1764688106993,0.001,90169.0,90168.0,0.22180818]
[1764688107410,0.001,90169.0,90166.0,0.23290178]
[1764688107610,0.01789807,90169.0,90167.0,0.22180855]
[1764688107845,0.01108967,90174.0,90167.0,0.22180855]
[1764688107846,0.01996861,90173.0,90170.0,0.01109016]
[1764688108026,0.01996861,90173.0,90171.0,0.22179847]
[1764688108237,0.27945424,90178.0,90170.0,0.01109016]
[1764688108238,0.22179342,90174.0,90170.0,0.23289231]
[1764688108443,0.01108942,90176.0,90170.0,0.23289231]
[1764688108444,0.01108942,90176.0,90173.0,0.01108979]
[1764688108626,0.01108954,90175.0,90171.0,0.01109004]
[1764688108839,0.04658,90178.0,90172.0,0.01108991]
[1764688109048,0.04620264,90179.0,90177.0,0.22178477]
[1764688109253,0.22173831,90197.0,90191.0,0.01108758]
[1764688109452,0.22175067,90192.0,90169.0,0.01109028]
[1764688109691,0.01108967,90174.0,90168.0,0.0110904]
[1764688110012,0.01108967,90174.0,90157.0,0.22183435]
[1764688110013,0.23290375,90166.0,90154.0,0.01109213]
[1764688110334,0.23290375,90166.0,90145.0,0.323]
[1764688110335,0.01308979,90173.0,90105.0,0.19503712]
[1764688110336,0.23296201,90144.0,90138.0,0.0110941]
[1764688110537,0.23296201,90144.0,90138.0,0.00038519]
[1764688110538,0.01109373,90141.0,90138.0,0.00038519]
[1764688110719,0.01109336,90144.0,90138.0,0.00038519]
[1764688110921,0.0110925,90151.0,90138.0,0.01147929]
[1764688111162,0.04658,90156.0,90138.0,0.01147929]
[1764688111163,0.01109139,90160.0,90150.0,0.01109262]
[1764688111363,0.011092,90155.0,90150.0,0.2329443]
[1764688111573,0.011092,90155.0,90150.0,0.01109262]
[1764688111778,0.22183118,90159.0,90155.0,0.22183828]
[1764688112058,0.01109139,90160.0,90075.0,0.09401747]
[1764688112059,0.01409065,90166.0,90161.0,0.01109127]
[1764688112302,0.003,90166.0,90164.0,0.22181703]
[1764688112735,0.002,90166.0,90164.0,0.22181703]
[1764688112944,0.002,90166.0,90165.0,0.41401]
[1764688113348,0.01108844,90184.0,90180.0,0.22177805]
[1764688113522,0.01943492,90183.0,90180.0,0.22177805]
[1764688113723,0.01943492,90183.0,90181.0,0.22177548]
[1764688113868,0.2328529,90186.0,90182.0,0.01108868]
[1764688114067,0.01108831,90185.0,90182.0,0.232861]
[1764688114315,0.01108831,90185.0,90178.0,0.2217825]
[1764688114316,0.01108844,90184.0,90178.0,0.22178185]
[1764688114520,0.01108844,90184.0,90126.0,2.77388019]
[1764688114521,0.01108991,90172.0,90164.0,0.06848]
[1764688114739,0.23290169,90167.0,90164.0,0.0501145]
[1764688114934,0.24954027,90166.0,90164.0,0.0501145]
[1764688115324,0.09367,90165.0,90164.0,0.0501145]
[1764688115729,0.12139694,90165.0,90164.0,0.0551145]
[1764688115972,0.12139694,90165.0,90164.0,0.0501145]
[1764688116409,0.04658,90209.0,90185.0,0.01108831]
[1764688116548,0.23545436,90208.0,90193.0,0.01108733]
[1764688116756,0.05766536,90209.0,90193.0,0.01108733]
[1764688116757,0.01108561,90207.0,90196.0,0.01108696]
[1764688116957,0.00265905,90206.0,90196.0,0.01108696]
[1764688117304,0.01108585,90205.0,90193.0,0.01108733]
[1764688117538,0.00265905,90204.0,90197.0,0.01108684]
[1764688117743,0.04758,90209.0,90202.0,0.22172253]